bitfinex-derivatives/quotes_ETHF0:USTF0_20250602
["timestamp","ask_amount","ask_price","bid_price","bid_amount"]
[1748901854972,2.06593,2573.7,2573.6,1.31876251]
[1748901857484,1.94208,2573.4,2573.0,3.2078]
[1748901857682,0.77692,2573.1,2573.0,3.2078]
[1748901858277,0.77701,2572.8,2572.7,3.2078]
[1748901858486,0.7771,2572.6,2572.5,3.21362468]
[1748901858780,0.7771,2572.6,2572.5,4.57202468]
[1748901859485,0.7771,2572.6,2572.5,5.34912468]
[1748901860479,0.011,2573.2,2572.5,4.57202468]
[1748901860678,5.81497,2573.0,2572.9,0.77698]
[1748901860878,5.81497,2573.0,2572.9,1.2577]
[1748901861479,0.77698,2572.9,2572.8,3.2078]
[1748901861680,0.77704,2572.7,2572.6,2.03477]
[1748901861877,8.31304,2573.0,2572.6,1.2577]
[1748901862074,8.31304,2573.0,2572.5,3.21362468]
[1748901862075,0.77698,2572.9,2572.8,3.2078]
[1748901862282,2.10958,2572.9,2572.8,3.2078]
[1748901863687,0.77707,2572.6,2572.5,4.47132468]
[1748901864188,0.77707,2572.6,2572.5,1.26352468]
[1748901864683,0.77707,2572.6,2572.5,4.47132468]
[1748901865781,0.77707,2572.6,2572.5,0.00582468]
[1748901866990,0.77707,2572.6,2572.5,3.21362468]
[1748901867585,0.77707,2572.6,2572.5,5.26042468]
[1748901867788,22.60375,2572.8,2572.5,5.26042468]
[1748901867789,0.77704,2572.8,2572.5,4.48332468]
[1748901867979,0.77704,2572.8,2572.7,0.77702]
[1748901868178,0.77707,2572.7,2572.6,0.77705]
[1748901868388,5.04,2572.9,2572.5,4.48332468]
[1748901868389,0.77707,2572.6,2572.5,4.48332468]
[1748901868682,0.77707,2572.6,2572.5,5.26042468]
[1748901869385,0.77707,2572.6,2572.5,4.48332468]
[1748901871587,5.81698,2572.9,2572.8,0.77701]
[1748901871888,5.81698,2572.9,2572.8,3.2078]
[1748901872793,5.81698,2572.9,2572.8,3.98481]
[1748901875190,0.77698,2573.0,2572.9,0.77695]
[1748901875495,5.58395,2573.0,2572.9,2.11518]
[1748901875796,5.59495,2573.0,2572.9,2.11518]
[1748901876690,5.58395,2573.0,2572.9,2.11518]
[1748901876897,5.58395,2573.0,2572.9,1.3382]
[1748901877785,5.59495,2573.0,2572.9,1.3382]
[1748901877987,5.59495,2573.0,2572.9,2.11518]
[1748901878196,5.59495,2573.0,2572.9,1.3382]
[1748901878692,5.58395,2573.0,2572.9,1.3382]
[1748901878899,5.58395,2573.0,2572.9,2.11518]
[1748901879197,5.58395,2573.0,2572.9,1.3382]
[1748901879895,5.59495,2573.0,2572.9,1.3382]
[1748901880898,5.58395,2573.0,2572.9,1.3382]
[1748901881796,5.59495,2573.0,2572.9,1.3382]
[1748901882900,5.58395,2573.0,2572.9,1.3382]
[1748901883801,5.59495,2573.0,2572.9,1.3382]
[1748901884596,0.78795,2573.0,2572.9,1.3382]
[1748901884793,4.807,2573.0,2572.9,1.3382]
[1748901885102,3.88413,2573.5,2572.9,1.3382]
[1748901885103,44.76574,2573.7,2573.6,0.77677]
[1748901885304,44.76574,2573.7,2573.6,3.98457]
[1748901886098,39.182,2573.7,2573.6,3.98457]
[1748901886399,43.989,2573.7,2573.6,3.98457]
[1748901886703,1.94208,2573.4,2573.0,4.3057]
[1748901886895,0.77689,2573.2,2573.1,1.2584]
[1748901887194,0.77692,2573.1,2573.0,3.2078]
[1748901890994,0.77692,2573.1,2573.0,3.98475]
[1748901891202,5.58391,2573.2,2573.1,0.77692]
[1748901891495,5.58391,2573.2,2573.1,1.313]
[1748901892307,5.58391,2573.2,2573.1,2.08992]
[1748901892498,5.58391,2573.2,2573.1,1.313]
[1748901893299,1.1069,2573.6,2573.1,2.08992]
[1748901893601,4.807,2573.5,2573.4,0.77683]
[1748901893904,5.5838,2573.5,2573.4,1.313]
[1748901894501,5.5838,2573.5,2573.4,2.08983]
[1748901895404,5.5838,2573.5,2573.4,1.313]
[1748901895597,0.77683,2573.4,2573.3,3.2078]
[1748901895905,0.77692,2573.1,2573.0,4.5196]
[1748901896799,0.77692,2573.1,2573.0,3.2078]
[1748901899110,0.77701,2572.8,2572.7,3.16023]
[1748901899307,5.58401,2572.8,2572.7,5.05623]
[1748901899709,4.807,2572.8,2572.7,5.05623]
[1748901899909,5.58401,2572.8,2572.7,5.05624]
[1748901900207,5.58401,2572.8,2572.7,3.2078]
[1748901900605,0.77707,2572.6,2572.5,0.00582468]
[1748901901700,0.77704,2572.8,2572.7,0.77704]
[1748901901908,4.807,2572.8,2572.7,3.98484]
[1748901902301,1.95328,2573.2,2573.1,0.77692]
[1748901902302,4.818,2573.2,2573.1,0.77692]
[1748901902503,0.011,2573.2,2573.1,3.98472]
[1748901902809,4.807,2573.8,2573.7,0.77674]
[1748901903008,4.807,2573.8,2573.7,3.98454]
[1748901904603,5.58371,2573.8,2573.7,3.2078]
[1748901905205,4.807,2573.8,2573.7,3.98454]
[1748901905405,0.00582468,2573.9,2573.8,0.77671]
[1748901905605,0.00582468,2573.9,2573.8,1.77261]
[1748901905811,0.00582468,2573.9,2573.8,8.07299422]
[1748901906507,0.00582468,2573.9,2573.8,1.77261]
[1748901907412,0.00582468,2573.9,2573.8,6.77261]
[1748901908910,0.00582468,2573.9,2573.8,1.77261]
[1748901909307,0.00582468,2573.9,2573.8,6.77261]
[1748901911118,0.77671,2573.8,2573.7,3.98452]
[1748901911414,0.77671,2573.8,2573.7,3.2078]
[1748901911603,0.77671,2573.8,2573.7,3.98454]
[1748901911809,0.78251468,2573.9,2573.8,0.77671]
[1748901912009,0.00582468,2573.9,2573.8,0.77671]
[1748901912312,0.78250468,2573.9,2573.8,0.77671]
[1748901913216,0.78251468,2573.9,2573.8,0.77671]
[1748901913401,0.00582468,2573.9,2573.8,0.77671]
[1748901913606,0.78250468,2573.9,2573.8,0.77671]
[1748901913907,0.77671,2573.8,2573.7,3.98454]
[1748901914103,0.77671,2573.8,2573.7,3.2078]
[1748901914710,0.77671,2573.8,2573.7,3.98454]
[1748901914907,0.77671,2573.8,2573.7,3.2078]
[1748901915314,0.77671,2573.8,2573.7,4.5587]
[1748901915516,0.77671,2573.8,2573.7,5.33544]
[1748901915715,0.77671,2573.8,2573.7,4.5587]
[1748901916519,0.77682,2573.5,2573.4,3.2078]
[1748901916715,5.41382,2573.5,2573.4,3.2078]
[1748901917014,0.77692,2573.1,2573.0,3.2078]
[1748901917615,0.77692,2573.1,2573.0,4.4899]
[1748901917918,0.77692,2573.1,2573.0,3.2078]
[1748901918217,0.77704,2572.7,2572.6,1.2821]
[1748901918414,0.77707,2572.6,2572.5,3.21362468]
[1748901918615,2.13317,2572.6,2572.5,3.21362468]
[1748901919326,2.13317,2572.6,2572.5,0.00582468]
[1748901919710,0.77716,2572.3,2572.2,3.2078]
[1748901920013,1.9429,2572.4,2571.8,3.98508]
[1748901920217,7.93601,2572.3,2571.9,0.77728]
[1748901920413,0.77727,2572.0,2571.8,3.98509]
[1748901920719,0.77728,2571.9,2571.8,3.98509]
[1748901920916,0.77728,2571.9,2571.8,3.2078]
[1748901921414,0.00582468,2572.2,2571.8,3.98509]
[1748901921608,0.00582468,2572.2,2571.8,3.2078]
[1748901921609,0.77728,2571.9,2571.8,3.2078]
[1748901921819,0.77728,2571.9,2571.8,3.98511]
[1748901922619,0.77734,2571.7,2571.6,0.00582468]
[1748901922821,5.41534,2571.7,2571.6,0.00582468]
[1748901925234,0.7774,2571.5,2571.4,3.2078]
[1748901925426,0.77746,2571.3,2571.2,1.2874]
[1748901925619,0.77746,2571.3,2570.9,3.2078]
[1748901925620,0.77755,2571.0,2570.9,3.2078]
[1748901925821,0.77764,2570.7,2570.6,2.2636]
[1748901926519,0.77764,2570.7,2570.6,1.2894]
[1748901927223,0.7777,2570.5,2570.4,1.29522468]
[1748901927523,5.4167,2570.5,2570.4,1.29522468]
[1748901928026,5.4167,2570.5,2570.4,0.00582468]
[1748901928223,4.639,2570.5,2569.8,6.39097]
[1748901928428,0.77776,2570.3,2570.2,1.2384]
[1748901928820,0.77776,2570.3,2569.8,7.12417]
[1748901928821,1.94441,2570.4,2569.8,5.1794]
[1748901929029,0.77785,2570.0,2569.9,1.2384]
[1748901929327,5.41785,2570.0,2569.9,1.2384]
[1748901929626,0.77788,2569.9,2569.8,3.2078]
[1748901929823,2.05498,2569.9,2569.8,3.2078]
[1748901930222,1.2771,2569.9,2569.7,0.00392201]
[1748901930530,0.77791,2569.8,2569.7,0.00392201]
[1748901931419,0.77791,2569.8,2569.2,1.2691]
[1748901931420,5.0,2569.8,2569.2,1.2691]
[1748901931634,0.77806,2569.4,2569.2,1.2691]
[1748901931930,5.41907,2569.3,2569.2,1.2691]
[1748901932326,5.41907,2569.3,2569.1,3.2078]
[1748901932327,0.7781,2569.2,2569.1,3.2078]
[1748901932932,2.0897,2569.2,2569.1,3.2078]
[1748901934329,6.7327,2569.2,2569.1,3.2078]
[1748901934538,5.9546,2569.2,2568.8,3.986]
[1748901934832,0.77817,2569.0,2568.8,3.986]
[1748901935028,6.73271,2569.2,2569.0,0.77814]
[1748901935226,4.643,2569.1,2568.9,1.3088]
[1748901935436,0.77816,2569.0,2568.9,1.3088]
[1748901935736,0.77816,2569.0,2568.9,2.08697]
[1748901935936,5.42114,2569.1,2569.0,0.77816]
[1748901938339,0.77828,2568.6,2568.5,3.2078]
[1748901938529,5.35728,2568.6,2568.5,3.2078]
[1748901939131,5.35728,2568.6,2568.5,1.2295]
[1748901939731,0.77828,2568.6,2568.5,1.2295]
[1748901939932,5.35728,2568.6,2568.5,1.2295]
[1748901940127,6.52471,2568.6,2568.1,3.2078]
[1748901940328,0.77838,2568.3,2568.2,0.77838]
[1748901940535,0.7784,2568.3,2568.2,0.77839]
[1748901940735,0.7784,2568.2,2568.1,3.98621]
[1748901940937,1.94578,2568.5,2568.2,0.7784]
[1748901941132,0.77838,2568.3,2568.2,0.77837]
[1748901941733,0.7784,2568.2,2568.1,3.2078]
[1748901941937,5.3574,2568.2,2568.1,3.2078]
[1748901942129,0.7784,2568.2,2568.1,3.2078]
[1748901942328,5.3574,2568.2,2568.1,3.2078]
[1748901943038,0.77843,2568.1,2568.0,1.2796]
[1748901945137,5.35843,2568.1,2568.0,1.2796]
[1748901945339,0.77843,2568.1,2568.0,1.2796]
[1748901945541,24.46143,2568.1,2568.0,1.2796]
[1748901947146,24.46143,2568.1,2568.0,0.89989804]
[1748901948344,25.62911,2568.1,2567.7,0.9233]
[1748901948547,0.77852,2567.8,2567.7,1.70183]
[1748901948843,0.00583635,2568.0,2567.9,0.77849]
[1748901949048,4.58683635,2568.0,2567.9,0.77849]
[1748901949238,4.58683635,2568.0,2567.9,5.77849]
[1748901950044,5.36529635,2568.0,2567.9,5.77849]
[1748901950241,0.77849,2567.9,2567.8,1.3265]
[1748901950450,0.77849,2567.9,2567.8,2.10502]
[1748901950649,0.00583635,2568.0,2567.9,0.77849]
[1748901950847,4.58683635,2568.0,2567.8,1.3265]
[1748901951151,0.77849,2567.9,2567.8,1.3265]
[1748901952336,0.77849,2567.9,2567.5,0.9179]
[1748901952337,0.77858,2567.6,2567.5,0.9179]
[1748901952548,0.77858,2567.6,2567.5,1.69651]
[1748901952747,5.36058,2567.6,2567.5,1.69651]
[1748901953146,5.36058,2567.6,2567.5,0.9179]
[1748901953649,5.36058,2567.6,2567.5,2.2158]
[1748901953841,5.36058,2567.6,2567.5,2.99441]
[1748901955041,5.36058,2567.6,2567.5,2.2158]
[1748901956352,0.77861,2567.5,2567.4,1.27753807]
[1748901956745,5.36061,2567.5,2567.4,1.27753807]
[1748901956943,5.36061,2567.5,2567.4,0.89775837]
[1748901957148,0.77861,2567.5,2567.4,0.89775837]
[1748901957350,5.36061,2567.5,2567.4,0.89775837]
[1748901959955,0.77861,2567.5,2567.4,0.89775837]
[1748901960154,5.36161,2567.5,2567.4,0.89775837]
[1748901960347,2.89805,2567.9,2567.4,0.89775837]
[1748901960549,0.7786,2567.6,2567.5,2.09881]
[1748901960744,0.7786,2567.6,2567.5,1.3202]
[1748901960951,0.77861,2567.5,2567.4,0.89775837]
[1748901963356,0.9359,2567.8,2567.7,0.77855]
[1748901963558,0.77852,2567.8,2567.7,3.2078]
[1748901963856,0.77858,2567.6,2567.5,2.2359]
[1748901964057,0.77856,2567.7,2567.5,2.2359]
[1748901964260,0.77854,2567.8,2567.7,0.77853]
[1748901964461,5.36154,2567.8,2567.7,2.12573]
[1748901964657,5.36154,2567.8,2567.7,1.3472]
[1748901965064,5.36154,2567.8,2567.7,5.33355]
[1748901965258,5.36154,2567.8,2567.7,4.555]
[1748901966359,5.36154,2567.8,2567.7,1.3472]
[1748901966563,5.35554,2567.8,2567.7,2.12575]
[1748901966758,5.35554,2567.8,2567.7,1.3472]
[1748901967360,0.00583635,2568.0,2567.6,3.2078]
[1748901967560,5.35552,2567.8,2567.7,1.3469]
[1748901967767,5.35552,2567.8,2567.7,4.5547]
[1748901967961,0.77851,2567.9,2567.8,0.77852]
[1748901968267,0.78432635,2568.0,2567.9,0.77849]
[1748901968459,4.58283635,2568.0,2567.9,0.77849]
[1748901968858,3.2078,2568.6,2567.9,8.26458487]
[1748901969161,3.2078,2569.3,2568.5,3.2078]
[1748901969362,1.94532,2569.1,2568.6,3.37267209]
[1748901969569,0.77822,2568.8,2568.7,1.3469]
[1748901969761,0.77822,2568.8,2568.7,2.12515]
[1748901969964,0.77822,2568.8,2568.7,1.3469]
[1748901970162,0.77822,2568.8,2568.7,3.37267209]
[1748901970661,0.77822,2568.8,2568.7,2.59442209]
[1748901970867,0.77822,2568.8,2568.7,2.59321247]
[1748901971561,0.77822,2568.8,2568.7,3.37143247]
[1748901971765,0.00583635,2569.0,2568.9,0.77819]
[1748901971963,0.00583635,2569.0,2568.9,2.02450247]
[1748901972165,0.00583635,2569.0,2568.8,3.2078]
[1748901972365,0.78399635,2569.0,2568.9,1.2526]
[1748901972766,5.35999635,2569.0,2568.9,1.2526]
[1748901973067,0.78399635,2569.0,2568.9,1.2526]
[1748901973363,5.35999635,2569.0,2568.9,1.2526]
[1748901974259,0.77822,2568.8,2568.7,0.9478]
[1748901975363,0.77822,2568.8,2568.7,4.1556]
[1748901975669,0.77822,2568.8,2568.7,5.437]
[1748901975971,0.77822,2568.8,2568.7,6.21525]
[1748901976166,0.77822,2568.8,2568.7,2.2292]
[1748901976763,0.77822,2568.8,2568.7,1.2814]
[1748901976963,4.58183635,2569.0,2568.6,0.8933]
[1748901976964,0.77825,2568.7,2568.6,0.8933]
[1748901978261,0.77828,2568.6,2568.5,1.30563635]
[1748901978670,0.77828,2568.6,2568.5,0.00583635]
[1748901979969,0.7784,2568.2,2568.1,0.9593]
[1748901980170,5.3544,2568.2,2568.1,0.9593]
[1748901981869,5.3544,2568.2,2567.8,3.9863]
[1748901982070,0.77849,2567.9,2567.8,3.9863]
[1748901982370,0.77849,2567.9,2567.8,3.2078]
[1748901983175,0.77849,2567.9,2567.8,3.98632]
[1748901983671,0.77849,2567.9,2567.8,3.2078]
[1748901985472,0.77849,2567.9,2567.6,0.77856]
[1748901985473,0.77855,2567.7,2567.6,0.77856]
[1748901985670,5.35455,2567.7,2567.6,0.77856]
[1748901985977,4.576,2567.7,2567.6,0.77856]
[1748901987968,0.77845,2568.1,2568.0,0.77843]
[1748901988171,0.77852,2567.9,2567.8,0.77848]
[1748901988375,0.77849,2568.0,2567.9,0.77846]
[1748901988679,0.77849,2568.0,2567.9,0.77847]
[1748901989777,4.576,2568.4,2568.0,1.94615]
[1748901989973,4.576,2568.4,2568.3,0.77837]
[1748901990282,0.77821,2568.9,2568.8,0.77819]
[1748901990470,0.77825,2568.8,2568.7,3.98602]
[1748901990779,5.35419,2568.9,2568.8,0.77822]
[1748901991075,5.35419,2568.9,2568.7,3.98602]
[1748901991076,0.77822,2568.8,2568.7,3.98602]
[1748901991477,4.576,2568.9,2568.8,0.77822]
[1748901991668,4.576,2568.9,2568.7,4.88793]
[1748901991868,0.77822,2568.8,2568.7,4.88793]
[1748901992573,5.3542,2568.9,2568.8,0.77822]
[1748901992769,5.35419,2568.9,2568.8,0.77822]
[1748901993769,0.00583635,2569.0,2568.7,4.1097]
[1748901993968,4.58183635,2569.0,2568.9,0.77819]
[1748901994484,0.77821,2568.9,2568.7,4.1097]
[1748901994776,0.77821,2568.9,2568.8,1.2805]
[1748901995566,0.77822,2568.8,2568.7,4.1097]
[1748901995771,5.35422,2568.8,2568.7,0.77825]
[1748901996080,0.77825,2568.7,2568.6,3.2078]
[1748901996378,0.77825,2568.7,2568.6,4.45402994]
[1748901996774,0.77825,2568.7,2568.6,5.73452994]
[1748901997080,0.77831,2568.5,2568.4,3.98612]
[1748901997273,0.77829,2568.6,2568.5,0.77827]
[1748901997576,4.568,2568.6,2568.5,3.2965396]
[1748901997966,3.99180635,2569.0,2568.6,1.94569]
[1748901998170,3.99180635,2569.0,2568.9,0.77819]
[1748901998370,8.55980635,2569.0,2568.9,0.77819]
[1748901998881,3.99180635,2569.0,2568.9,0.77819]
[1748901999073,3.99179635,2569.0,2568.9,2.04989]
[1748901999379,4.57383635,2569.0,2568.9,2.95179]
[1748901999770,5.35199635,2569.0,2568.9,2.1736]
[1748901999977,5.35199635,2569.0,2568.9,1.2717]
[1748902001773,0.77819,2568.9,2568.8,0.07069789]
[1748902001979,0.77819,2568.9,2568.8,0.84891789]
[1748902002276,0.00583635,2569.0,2568.9,0.77819]
[1748902002482,4.57383635,2569.0,2568.9,0.77819]
[1748902003281,5.35199635,2569.0,2568.9,2.09709]
[1748902005385,5.35199635,2569.0,2568.9,1.3189]
[1748902005779,5.35199635,2569.0,2568.8,0.07069789]
[1748902005780,0.77819,2568.9,2568.8,0.07069789]
[1748902007887,0.77819,2568.9,2568.8,0.84891789]
[1748902008083,0.77819,2568.9,2568.8,2.19131789]
[1748902008582,0.77819,2568.9,2568.8,1.41309789]
[1748902008883,0.77819,2568.9,2568.8,2.19131789]
[1748902011382,4.56747939,2569.0,2568.9,0.77819]
[1748902011582,4.56747939,2569.0,2568.9,2.09249]
[1748902012290,5.34563939,2569.0,2568.9,2.09249]
[1748902012783,0.77819,2568.9,2568.8,0.07069789]
[1748902012982,0.77819,2568.9,2568.8,0.84891789]
[1748902013182,0.77819,2568.9,2568.8,2.15061789]
[1748902014786,0.78398635,2569.1,2569.0,0.77815]
[1748902014985,5.35098635,2569.1,2569.0,0.77815]
[1748902016190,0.77819,2568.9,2568.8,1.3017]
[1748902016389,0.77819,2568.9,2568.8,0.77822]
[1748902016591,0.77816,2569.0,2568.9,0.77815]
[1748902016784,5.35097635,2569.1,2569.0,0.77815]
[1748902016981,4.57283635,2569.1,2569.0,0.77815]
[1748902017297,0.00583635,2569.1,2569.0,3.98595]
[1748902017496,5.30466666,2569.9,2569.8,0.77791]
[1748902017800,3.10056666,2570.0,2569.9,0.77788]
[1748902017982,3.10056666,2570.0,2569.9,2.11348]
[1748902018187,4.567,2570.2,2570.1,0.77782]
[1748902018485,4.567,2570.2,2570.1,3.98562]
[1748902019185,4.567,2570.2,2570.1,3.2078]
[1748902019393,5.34482,2570.2,2570.1,0.77782]
[1748902019592,4.567,2570.2,2570.1,0.77782]
[1748902020595,4.567,2570.2,2569.9,6.3966]
[1748902020596,5.34477,2570.3,2570.2,0.77776]
[1748902020893,4.567,2570.3,2570.2,0.77776]
[1748902022987,4.567,2570.3,2570.2,3.98556]
[1748902023188,4.567,2570.3,2570.1,1.2864]
[1748902023189,0.77779,2570.2,2570.1,1.2864]
[1748902023487,5.34478,2570.3,2570.2,0.77779]
[1748902024499,5.34478,2570.3,2570.2,3.98559]
[1748902025395,4.567,2570.3,2570.2,3.98559]
[1748902032000,0.00583635,2570.4,2570.3,0.77776]
[1748902032203,0.00583635,2570.4,2570.3,2.10726]
[1748902032703,3.1903,2571.3,2571.2,0.77749]
[1748902032900,8.52078,2571.3,2571.2,0.77749]
[1748902033100,0.77753,2571.2,2571.1,0.7775]
[1748902033496,4.541,2571.3,2570.9,4.5373]
[1748902033700,0.77755,2571.0,2570.9,1.3295]
[1748902034005,0.77767,2570.6,2570.5,3.98548]
[1748902034206,0.77776,2570.3,2570.2,3.2078]
[1748902034405,0.77779,2570.2,2570.1,0.77781]
[1748902034709,0.77782,2570.1,2570.0,0.78366635]
[1748902035399,0.77781,2570.2,2570.1,0.77779]
[1748902036497,0.77781,2570.2,2570.0,0.00583635]
[1748902036498,0.77782,2570.1,2570.0,0.00583635]
[1748902036808,2.13782,2570.1,2570.0,0.00583635]
[1748902037109,0.77806,2569.3,2569.2,1.2397]
[1748902037408,0.77809,2569.2,2569.1,3.2078]
[1748902037601,1.2722,2569.2,2569.1,0.77812]
[1748902037815,6.3928,2569.5,2569.2,0.77808]
[1748902038106,0.77809,2569.2,2569.1,0.00583635]
[1748902039297,5.77809,2569.2,2569.1,0.00583635]
[1748902039499,0.77823,2568.8,2568.6,3.2078]
[1748902039704,4.553,2568.8,2568.7,3.98604]
[1748902039908,4.553,2568.8,2568.7,0.77824]
[1748902041507,5.33122,2568.8,2568.7,0.77824]
[1748902041700,6.69452,2568.8,2568.7,0.77824]
[1748902042395,5.9163,2568.8,2568.7,0.77824]
[1748902042897,4.553,2568.8,2568.7,0.77824]
[1748902043501,4.553,2568.8,2568.6,3.2078]
[1748902043811,4.553,2568.8,2567.7,0.77854]
[1748902043812,0.77853,2567.8,2567.7,0.77854]
[1748902044104,4.554,2567.8,2567.5,3.98639]
[1748902044295,4.554,2567.8,2567.5,3.2078]
[1748902044496,1.2478,2567.7,2567.5,3.2078]
[1748902044696,0.77861,2567.5,2567.4,0.89775837]
[1748902046006,0.77861,2567.5,2567.4,0.88575837]
[1748902047106,5.77861,2567.5,2567.4,0.88575837]
[1748902047299,1.9466,2567.4,2566.8,3.2078]
[1748902047611,0.77879,2566.9,2566.8,3.2078]
[1748902047804,0.77879,2566.9,2565.8,1.94775]
[1748902047805,3.2078,2567.0,2566.0,4.1582]
[1748902048103,3.2078,2566.7,2566.0,3.2078]
[1748902048305,0.00583635,2566.8,2566.3,3.2078]
[1748902048608,4.556,2566.6,2566.5,0.77891]
[1748902048803,4.556,2566.6,2566.5,3.98671]
[1748902049601,4.556,2566.6,2566.4,1.29]
[1748902049602,4.556,2566.6,2566.4,2.06893]
[1748902049806,4.556,2566.6,2566.5,0.77891]
[1748902050107,4.556,2566.6,2566.5,2.12831]
[1748902050303,4.556,2566.6,2566.1,0.907]
[1748902050511,4.556,2566.6,2566.3,3.2078]
[1748902050512,0.77891,2566.5,2566.3,3.2078]
[1748902050705,0.77891,2566.5,2566.3,2.12837]
[1748902050906,0.00583635,2566.8,2566.4,3.2078]
[1748902051112,0.00583635,2566.8,2566.7,3.98665]
[1748902054108,0.00583635,2566.8,2566.7,8.98665]
[1748902054616,7.7648,2567.6,2566.8,1.94704]
[1748902054917,4.557,2568.1,2567.6,1.94644]
[1748902055220,5.33543,2568.1,2567.9,0.77848]
[1748902055516,5.33543,2568.1,2567.7,5.4603]
[1748902055816,4.557,2568.1,2568.0,3.98626]
[1748902056924,4.557,2568.1,2568.0,3.2078]
[1748902057217,5.33543,2568.1,2568.0,3.2078]
[1748902057414,5.33543,2568.1,2568.0,4.5149]
[1748902057615,4.557,2568.1,2568.0,5.29336]
[1748902058611,0.00583635,2568.2,2568.1,0.77843]
[1748902063312,0.00583635,2568.2,2568.0,5.29334]
[1748902063313,0.77842,2568.1,2568.0,5.29334]
[1748902063518,0.00583635,2568.2,2568.1,0.77842]
[1748902064822,0.78422635,2568.2,2568.1,0.77842]
[1748902065324,0.78424635,2568.2,2568.1,0.77842]
[1748902066217,0.78424635,2568.2,2568.0,1.3071]
[1748902066218,0.77842,2568.1,2568.0,1.3071]
[1748902066421,0.77842,2568.1,2568.0,3.2078]
[1748902066716,0.77842,2568.1,2567.7,1.76743]
[1748902066717,0.77851,2567.8,2567.7,3.2078]
[1748902067522,0.77854,2567.7,2567.6,0.00583635]
[1748902068314,2.13404,2567.7,2567.6,0.00583635]
[1748902068520,2.13404,2567.7,2567.6,0.78440635]
[1748902068910,2.13404,2567.7,2567.6,0.00583635]
[1748902069823,2.13404,2567.7,2567.6,0.78439635]
[1748902070816,0.9675,2567.8,2567.7,0.77853]
[1748902071012,4.543,2567.9,2567.7,1.2496]
[1748902071215,4.543,2567.9,2567.8,0.77849]
[1748902072726,5.32148,2567.9,2567.8,0.77849]
[1748902073219,0.77851,2567.8,2567.7,2.02813]
[1748902073425,0.77851,2567.8,2567.7,1.2496]
[1748902073917,0.77854,2567.7,2567.6,3.28433424]
[1748902074119,0.77854,2567.7,2567.6,4.06290424]
[1748902074322,0.77854,2567.7,2567.6,0.85510424]
[1748902075121,0.77854,2567.7,2567.6,0.07653424]
[1748902075519,0.77854,2567.7,2567.6,0.85510424]
[1748902075821,2.10183,2567.8,2567.7,0.77854]
[1748902076019,0.77854,2567.7,2567.6,4.06288424]
[1748902076420,0.77854,2567.7,2567.6,0.85508424]
[1748902076725,0.77854,2567.7,2567.6,0.85509424]
[1748902077622,0.77854,2567.7,2567.6,4.06289424]
[1748902080530,0.77854,2567.7,2567.6,4.06290424]
[1748902080727,1.3233,2567.8,2567.6,4.06290424]
[1748902080728,1.3233,2567.8,2567.7,0.77854]
[1748902080933,4.543,2567.9,2567.8,0.77851]
[1748902082220,4.543,2567.9,2567.7,1.2423]
[1748902082426,4.543,2567.9,2567.8,0.77851]
[1748902083724,4.543,2567.9,2567.8,6.73181]
[1748902083927,4.543,2568.6,2568.4,1.94581]
[1748902084123,4.543,2568.6,2568.5,2.0932]
[1748902084724,5.32127,2568.6,2568.5,2.0932]
[1748902085525,4.543,2568.6,2568.5,2.0932]
[1748902085730,5.32127,2568.6,2568.5,2.0932]
[1748902085932,4.543,2568.6,2568.5,2.0932]
[1748902086333,5.32127,2568.6,2568.5,2.0932]
[1748902086534,4.543,2568.6,2568.5,2.0932]
[1748902087031,0.00583635,2568.8,2568.7,0.77824]
[1748902087337,0.00583635,2568.8,2568.7,3.98604]
[1748902088425,6.35e-06,2568.8,2568.7,8.98604]
[1748902088631,6.35e-06,2568.8,2568.7,10.17944302]
[1748902089033,6.35e-06,2568.8,2568.7,11.41694302]
[1748902090032,0.77821635,2568.8,2568.7,6.4161496]
[1748902090236,0.77821635,2568.8,2568.7,4.4453]
[1748902090832,5.30421635,2568.8,2568.7,3.2078]
[1748902093837,0.77821635,2568.8,2568.7,3.98604]
[1748902094037,5.30421635,2568.8,2568.7,3.98604]
[1748902094544,0.77821635,2568.8,2568.7,3.98604]
[1748902094743,5.30421635,2568.8,2568.7,3.98604]
[1748902094936,4.52600635,2568.8,2568.7,3.98604]
[1748902095543,6.35e-06,2568.8,2568.7,3.98604]
[1748902098947,0.77821635,2568.8,2568.7,3.98604]
[1748902099453,0.77821635,2568.8,2568.7,3.2078]
[1748902100548,0.77821635,2568.8,2568.7,3.98604]
[1748902100549,6.35e-06,2568.8,2568.7,3.98604]
[1748902100748,4.52500635,2568.8,2568.7,3.98604]
[1748902100941,5.30321635,2568.8,2568.7,3.98604]
[1748902101140,5.30321635,2568.8,2568.7,3.2078]
[1748902101644,4.52500635,2568.8,2568.3,3.2078]
[1748902101846,0.77833,2568.4,2568.3,3.2078]
[1748902102238,0.77833,2568.4,2568.3,3.98616]
[1748902102439,0.77829,2568.6,2568.5,0.77827]
[1748902102851,0.7783,2568.5,2568.4,1.3361]
[1748902103051,5.24204,2568.7,2568.3,3.2078]
[1748902103052,0.77833,2568.4,2568.3,3.2078]
[1748902104649,0.77842,2568.1,2568.0,5.32234]
[1748902104951,0.77842,2568.1,2568.0,4.5439]
[1748902105147,6.47195,2568.3,2567.7,0.9161]
[1748902105148,1.94602,2568.2,2567.8,0.7785]
[1748902105363,0.77848,2567.9,2567.8,2.1324]
[1748902106849,0.77847,2568.0,2567.9,0.77845]
[1748902108855,0.77848,2567.9,2567.8,2.13239]
[1748902109056,0.77851,2567.8,2567.7,3.2078]
[1748902109352,5.30451,2567.8,2567.7,3.2078]
[1748902109546,5.30451,2567.8,2567.7,3.98634]